{"text_format":"1","workbook":"xlsx","n_sheets":2,"sheets":["Calcul","Schéma"],"not_rendered":{"charts":0,"images":3,"macros":1,"external_links":0,"defined_names":2,"comments":0,"pivot_tables":0},"unopened":[],"bounds":{"document_bytes":16777216,"sheet_cells":100000,"rows_first":2000,"rows_last":500,"rows_between":2000,"halvings":0,"cell_chars":16384,"cell_head_chars":4096},"cells_cut":0,"cells_raw":0,"read":"whole","date_system":"1900"}

{"sheet":"Calcul","index":0,"n_rows":17,"n_cols":4,"rows_kept":17,"cut":false,"hidden":false,"merged":[[2,0,2,3],[0,0,0,3],[1,0,1,3]]}
["CALCUL DU BALANCEMENT D'UN ESCALIER TOURNANT"]
["Par la méthode de division du cercle"]
[]
["Longueur de la partie droite à balancer :",null,65,"cm"]
["Nombre de marches à balancer dans la volée :",null,5,{"$f":"IF(C5<2,\"marche\",\"marches\")","v":"marches"}]
[]
["Commentaires","Numéro de la marche","Collet cumulé","Collet marche"]
["La première marche balancée est celle à l'opposé du tournant",{"$f":"IF(ROW(B8)-ROW(B$7)>Marches,\"\",ROW(B8)-ROW(B$7))","v":1},{"$f":"IF(B8=\"\",\"\",Volée*SIN(1.57*B8/Marches))","v":20.076258806430591},{"$f":"IF(B8=\"\",\"\",C8)","v":20.076258806430591}]
[null,2,38.189289171402976,{"$f":"IF(B9=\"\",\"\",C9-C8)","v":18.113030364972385}]
["\"Collet marche\" indique la profondeur de la marche au jour de l'escalier",3,52.567843935953462,14.378554764550486]
["et mesuré sur la ligne de l'axe de rotation de l'escalier.",4,61.805864932920549,9.2380209969670872]
[null,5,64.999979390569251,3.1941144576487019]
["\"Collet cumulé\" donne la somme des collets depuis la première marche","","",""]
[null,"","",""]
[null,"","",""]
[null,"","",""]
[null,"","",""]

{"sheet":"Schéma","index":1,"n_rows":0,"n_cols":0,"rows_kept":0,"cut":false,"hidden":false,"merged":[]}